[Event "*** Titled Tuesday Blitz"]
[Site "Chess.com"]
[Date "2020.02.04"]
[Round "8"]
[White "korbul"]
[Black "Nikolakis2014"]
[Result "0-1"]
[WhiteElo "2597"]
[BlackElo "2725"]
[TimeControl "180+2"]
[EndTime "10:57:20 PST"]
[Termination "Nikolakis2014 won by resignation"]

1. d4 {[%clk 0:03:01.9]} 1... Nf6 {[%clk 0:03:00.1]} 2. Nf3 {[%clk 0:03:02.5]}
2... e6 {[%clk 0:03:01]} 3. c4 {[%clk 0:03:02.8]} 3... c5 {[%clk 0:03:01.4]} 4.
d5 {[%clk 0:03:03.4]} 4... d6 {[%clk 0:03:02.6]} 5. Nc3 {[%clk 0:03:03.7]} 5...
exd5 {[%clk 0:03:03.7]} 6. cxd5 {[%clk 0:03:04.4]} 6... g6 {[%clk 0:03:05]} 7.
e4 {[%clk 0:03:05.2]} 7... Bg7 {[%clk 0:03:05.7]} 8. Be2 {[%clk 0:03:06.4]} 8...
O-O {[%clk 0:03:06.4]} 9. O-O {[%clk 0:03:07.4]} 9... Re8 {[%clk 0:03:07.6]} 10.
Nd2 {[%clk 0:03:07.8]} 10... Nbd7 {[%clk 0:03:08.4]} 11. f3 {[%clk 0:03:01.6]}
11... Nh5 {[%clk 0:03:00.4]} 12. Nc4 {[%clk 0:03:01.2]} 12... Ne5 {[%clk
0:02:59.7]} 13. Be3 {[%clk 0:02:28.1]} 13... Nxc4 {[%clk 0:02:48.6]} 14. Bxc4
{[%clk 0:02:28.2]} 14... a6 {[%clk 0:02:49.7]} 15. a4 {[%clk 0:02:27.7]} 15...
f5 {[%clk 0:02:47.5]} 16. Qd2 {[%clk 0:02:22]} 16... Bd7 {[%clk 0:02:13]} 17.
Bg5 {[%clk 0:02:18.8]} 17... Bf6 {[%clk 0:02:04.6]} 18. Bxf6 {[%clk 0:02:19.6]}
18... Nxf6 {[%clk 0:02:05]} 19. exf5 {[%clk 0:02:18.2]} 19... Bxf5 {[%clk
0:02:05.7]} 20. Rae1 {[%clk 0:02:17.2]} 20... Qc7 {[%clk 0:02:00.1]} 21. Qg5
{[%clk 0:02:10.9]} 21... Qg7 {[%clk 0:01:54.6]} 22. g4 {[%clk 0:02:06.1]} 22...
Bd7 {[%clk 0:01:51.7]} 23. a5 {[%clk 0:01:48]} 23... Kh8 {[%clk 0:01:50.8]} 24.
h4 {[%clk 0:01:45.3]} 24... Rf8 {[%clk 0:01:49.2]} 25. Kg2 {[%clk 0:01:43.9]}
25... Rf7 {[%clk 0:01:48.3]} 26. Re2 {[%clk 0:01:28.8]} 26... Raf8 {[%clk
0:01:44.1]} 27. Qd2 {[%clk 0:01:29.2]} 27... Nxg4 {[%clk 0:01:40]} 28. Ne4
{[%clk 0:01:17.6]} 28... Qe5 {[%clk 0:01:21.2]} 29. Ng3 {[%clk 0:01:18.2]} 29...
Qf6 {[%clk 0:00:51.6]} 30. fxg4 {[%clk 0:01:15.6]} 30... Qxh4 {[%clk 0:00:52.3]}
31. Rxf7 {[%clk 0:01:15.4]} 31... Rxf7 {[%clk 0:00:53.4]} 32. Re6 {[%clk
0:01:03.2]} 32... Qxg4 {[%clk 0:00:50.4]} 33. Qe2 {[%clk 0:00:59.7]} 33... Bxe6
{[%clk 0:00:19.8]} 34. dxe6 {[%clk 0:00:58.9]} 34... Qxe2+ {[%clk 0:00:20.9]}
35. Nxe2 {[%clk 0:00:59.1]} 35... Re7 {[%clk 0:00:22.5]} 36. Kf3 {[%clk
0:00:58.1]} 36... Kg7 {[%clk 0:00:23.1]} 37. Nc3 {[%clk 0:00:55.9]} 37... h5
{[%clk 0:00:18.5]} 38. Ke4 {[%clk 0:00:57]} 38... h4 {[%clk 0:00:18.1]} 39. Kd5
{[%clk 0:00:57.2]} 39... g5 {[%clk 0:00:18.6]} 40. Kxd6 {[%clk 0:00:57.6]} 40...
Re8 {[%clk 0:00:19.3]} 41. Kd7 {[%clk 0:00:56.7]} 41... Rh8 {[%clk 0:00:19.8]}
42. e7 {[%clk 0:00:56.4]} 42... g4 {[%clk 0:00:20.9]} 43. Ne2 {[%clk 0:00:34]}
43... Kf6 {[%clk 0:00:21.6]} 44. Bd5 {[%clk 0:00:31.7]} 44... Rh7 {[%clk
0:00:21.7]} 45. Bxb7 {[%clk 0:00:29.9]} 45... Rxe7+ {[%clk 0:00:22.5]} 46. Kc8
{[%clk 0:00:31.8]} 46... Rxe2 {[%clk 0:00:23.8]} 47. Bxa6 {[%clk 0:00:31.9]}
47... Rxb2 {[%clk 0:00:24.6]} 48. Bb7 {[%clk 0:00:33.8]} 48... Ra2 {[%clk
0:00:24.8]} 49. a6 {[%clk 0:00:35.1]} 49... h3 {[%clk 0:00:25.5]} 50. Kc7 {[%clk
0:00:36.3]} 50... g3 {[%clk 0:00:25.7]} 51. Kb6 {[%clk 0:00:38.2]} 51... g2
{[%clk 0:00:25.5]} 0-1

[Event "*** Titled Tuesday Blitz"]
[Site "Chess.com"]
[Date "2020.02.04"]
[Round "8"]
[White "SabinaFoisor"]
[Black "Lubov_Gordyk"]
[Result "1-0"]
[WhiteElo "2434"]
[BlackElo "2625"]
[TimeControl "180+2"]
[EndTime "10:57:32 PST"]
[Termination "SabinaFoisor won by checkmate"]

1. d4 {[%clk 0:03:01.9]} 1... c5 {[%clk 0:03:00.4]} 2. d5 {[%clk 0:03:02.3]}
2... f5 {[%clk 0:03:01.5]} 3. e4 {[%clk 0:02:42.1]} 3... fxe4 {[%clk 0:03:02.4]}
4. Nc3 {[%clk 0:02:39.6]} 4... Nf6 {[%clk 0:03:03.3]} 5. Bg5 {[%clk 0:02:40.1]}
5... Qb6 {[%clk 0:03:03.3]} 6. Rb1 {[%clk 0:02:35.4]} 6... d6 {[%clk 0:02:58.8]}
7. Bxf6 {[%clk 0:02:23]} 7... exf6 {[%clk 0:02:57.1]} 8. Nxe4 {[%clk 0:02:21.9]}
8... Be7 {[%clk 0:02:58]} 9. Qh5+ {[%clk 0:01:50.3]} 9... g6 {[%clk 0:02:51.1]}
10. Qh6 {[%clk 0:01:46.4]} 10... Qb4+ {[%clk 0:02:39.3]} 11. Nc3 {[%clk
0:01:35.6]} 11... Kf7 {[%clk 0:02:39.6]} 12. Bd3 {[%clk 0:01:29.8]} 12... Qg4
{[%clk 0:02:12.7]} 13. Nge2 {[%clk 0:01:06.5]} 13... f5 {[%clk 0:01:52.8]} 14.
h4 {[%clk 0:00:51.8]} 14... Bf8 {[%clk 0:01:18.6]} 15. Qg5 {[%clk 0:00:45.2]}
15... Qxg5 {[%clk 0:01:02.7]} 16. hxg5 {[%clk 0:00:47.1]} 16... Nd7 {[%clk
0:01:01.5]} 17. f4 {[%clk 0:00:42.9]} 17... a6 {[%clk 0:01:01.8]} 18. a4 {[%clk
0:00:42.6]} 18... b6 {[%clk 0:00:56.8]} 19. b4 {[%clk 0:00:34.1]} 19... Bg7
{[%clk 0:00:46.5]} 20. bxc5 {[%clk 0:00:24.6]} 20... dxc5 {[%clk 0:00:46.3]} 21.
Kd2 {[%clk 0:00:21.6]} 21... Ke7 {[%clk 0:00:38.1]} 22. Nd1 {[%clk 0:00:19.2]}
22... Bb7 {[%clk 0:00:31.9]} 23. Ne3 {[%clk 0:00:20]} 23... Rab8 {[%clk
0:00:25.9]} 24. c4 {[%clk 0:00:20.9]} 24... h6 {[%clk 0:00:22.3]} 25. gxh6
{[%clk 0:00:19.8]} 25... Bxh6 {[%clk 0:00:23.4]} 26. g3 {[%clk 0:00:20.9]} 26...
Bg7 {[%clk 0:00:22.4]} 27. g4 {[%clk 0:00:15]} 27... fxg4 {[%clk 0:00:21.8]} 28.
Nxg4 {[%clk 0:00:16.9]} 28... Nf6 {[%clk 0:00:21.5]} 29. Ne5 {[%clk 0:00:17.2]}
29... Rxh1 {[%clk 0:00:20.7]} 30. Rxh1 {[%clk 0:00:17.7]} 30... Rd8 {[%clk
0:00:18.7]} 31. Nxg6+ {[%clk 0:00:18.5]} 31... Kd6 {[%clk 0:00:19.7]} 32. Ne5
{[%clk 0:00:20.1]} 32... b5 {[%clk 0:00:19.3]} 33. axb5 {[%clk 0:00:20.6]} 33...
axb5 {[%clk 0:00:20.4]} 34. Nc3 {[%clk 0:00:21.8]} 34... bxc4 {[%clk 0:00:19.9]}
35. Nxc4+ {[%clk 0:00:22.4]} 35... Kc7 {[%clk 0:00:20.5]} 36. d6+ {[%clk
0:00:23.5]} 36... Kb8 {[%clk 0:00:20.9]} 37. Rg1 {[%clk 0:00:23.6]} 37... Ne8
{[%clk 0:00:21.5]} 38. Ne4 {[%clk 0:00:21.4]} 38... Bd4 {[%clk 0:00:20.7]} 39.
Rg6 {[%clk 0:00:21.7]} 39... Bxe4 {[%clk 0:00:21.4]} 40. Bxe4 {[%clk 0:00:23.6]}
40... Kc8 {[%clk 0:00:20.8]} 41. Nb6+ {[%clk 0:00:22.5]} 41... Kb8 {[%clk
0:00:21.4]} 42. Nc4 {[%clk 0:00:21.1]} 42... Kc8 {[%clk 0:00:21.9]} 43. Bc6
{[%clk 0:00:21.8]} 43... Nf6 {[%clk 0:00:21]} 44. Nb6+ {[%clk 0:00:20.9]} 44...
Kb8 {[%clk 0:00:22.1]} 45. Kd3 {[%clk 0:00:19.4]} 45... Ka7 {[%clk 0:00:22.4]}
46. Nc4 {[%clk 0:00:19.9]} 46... Kb8 {[%clk 0:00:22]} 47. Rg7 {[%clk 0:00:19.8]}
47... Nd5 {[%clk 0:00:12.1]} 48. Rb7+ {[%clk 0:00:20.5]} 48... Kc8 {[%clk
0:00:13.1]} 49. Bxd5 {[%clk 0:00:22.1]} 49... Rg8 {[%clk 0:00:13.7]} 50. Nb6+
{[%clk 0:00:22]} 50... Kd8 {[%clk 0:00:15.6]} 51. Rb8# {[%clk 0:00:23.5]} 1-0

[Event "*** Titled Tuesday Blitz"]
[Site "Chess.com"]
[Date "2020.02.04"]
[Round "8"]
[White "Kimster98"]
[Black "wonderfultime"]
[Result "0-1"]
[WhiteElo "2702"]
[BlackElo "2958"]
[TimeControl "180+2"]
[EndTime "10:57:43 PST"]
[Termination "wonderfultime won by resignation"]

1. Nf3 {[%clk 0:02:57.2]} 1... d5 {[%clk 0:03:01]} 2. d4 {[%clk 0:02:57.7]} 2...
Nf6 {[%clk 0:03:01.5]} 3. c4 {[%clk 0:02:58.8]} 3... c6 {[%clk 0:03:02.9]} 4.
Nc3 {[%clk 0:02:56.7]} 4... a6 {[%clk 0:03:03.7]} 5. c5 {[%clk 0:02:53.1]} 5...
Nbd7 {[%clk 0:03:02.7]} 6. Bf4 {[%clk 0:02:53.6]} 6... Nh5 {[%clk 0:03:02.7]} 7.
Bd2 {[%clk 0:02:53.7]} 7... g6 {[%clk 0:03:03.4]} 8. e4 {[%clk 0:02:54.3]} 8...
dxe4 {[%clk 0:02:59]} 9. Nxe4 {[%clk 0:02:56.2]} 9... Bg7 {[%clk 0:03:00.4]} 10.
Bc4 {[%clk 0:02:57.1]} 10... O-O {[%clk 0:02:57.3]} 11. O-O {[%clk 0:02:55.8]}
11... Nhf6 {[%clk 0:02:55.1]} 12. Nc3 {[%clk 0:02:55.7]} 12... b5 {[%clk
0:02:50.8]} 13. cxb6 {[%clk 0:02:48.6]} 13... Nxb6 {[%clk 0:02:51.8]} 14. Bb3
{[%clk 0:02:43.1]} 14... a5 {[%clk 0:02:40.7]} 15. Rc1 {[%clk 0:02:23.7]} 15...
e6 {[%clk 0:02:24]} 16. Na4 {[%clk 0:02:01.9]} 16... Bb7 {[%clk 0:02:06.3]} 17.
Nc5 {[%clk 0:01:54.6]} 17... Bc8 {[%clk 0:02:07]} 18. Bf4 {[%clk 0:01:30.1]}
18... Nbd5 {[%clk 0:01:46.9]} 19. Bg3 {[%clk 0:01:26.7]} 19... Ba6 {[%clk
0:01:42.2]} 20. Re1 {[%clk 0:01:21]} 20... Bh6 {[%clk 0:01:25.8]} 21. Rb1 {[%clk
0:01:14.5]} 21... Nh5 {[%clk 0:01:11.7]} 22. Ne5 {[%clk 0:01:00.8]} 22... Nxg3
{[%clk 0:01:08.9]} 23. hxg3 {[%clk 0:01:00.7]} 23... Qc7 {[%clk 0:01:05.5]} 24.
Qf3 {[%clk 0:00:09.2]} 24... Bb5 {[%clk 0:01:04.9]} 25. Ng4 {[%clk 0:00:07]}
25... Bg7 {[%clk 0:01:04.4]} 26. Bxd5 {[%clk 0:00:05.7]} 26... cxd5 {[%clk
0:01:04]} 27. Rbc1 {[%clk 0:00:04.3]} 27... Qd6 {[%clk 0:00:56.8]} 28. Ne5
{[%clk 0:00:03.7]} 28... Ra7 {[%clk 0:00:55.1]} 29. Qf4 {[%clk 0:00:04.8]} 29...
Rd8 {[%clk 0:00:52.5]} 30. Nf3 {[%clk 0:00:05.7]} 30... Qb6 {[%clk 0:00:48.6]}
31. Ne5 {[%clk 0:00:06.6]} 31... Be8 {[%clk 0:00:49.6]} 32. b3 {[%clk
0:00:07.2]} 32... Re7 {[%clk 0:00:45.4]} 33. Nf3 {[%clk 0:00:07.8]} 33... h6
{[%clk 0:00:42.4]} 34. Qd2 {[%clk 0:00:06.8]} 34... Rc7 {[%clk 0:00:42]} 35. Ne5
{[%clk 0:00:06.5]} 35... Rdc8 {[%clk 0:00:42.6]} 36. f4 {[%clk 0:00:06]} 36...
Bf8 {[%clk 0:00:41.7]} 37. Ned3 {[%clk 0:00:05.2]} 37... Bb5 {[%clk 0:00:41.2]}
38. Qf2 {[%clk 0:00:03]} 38... a4 {[%clk 0:00:23.6]} 39. b4 {[%clk 0:00:03.9]}
39... Bxd3 {[%clk 0:00:23.9]} 40. Nxd3 {[%clk 0:00:05.3]} 40... Rxc1 {[%clk
0:00:25.1]} 41. Rxc1 {[%clk 0:00:07.2]} 41... Rxc1+ {[%clk 0:00:26.4]} 42. Nxc1
{[%clk 0:00:09.1]} 42... Qxb4 {[%clk 0:00:28.3]} 43. Ne2 {[%clk 0:00:09.7]}
43... Qb1+ {[%clk 0:00:29.2]} 44. Kh2 {[%clk 0:00:10.8]} 44... Qxa2 {[%clk
0:00:30.7]} 45. f5 {[%clk 0:00:12.3]} 45... exf5 {[%clk 0:00:30.6]} 46. Qe3
{[%clk 0:00:12.7]} 46... Qa3 {[%clk 0:00:27.2]} 47. Qe5 {[%clk 0:00:13.2]} 47...
Qe7 {[%clk 0:00:28.1]} 48. Qxe7 {[%clk 0:00:10.9]} 48... Bxe7 {[%clk 0:00:30]}
49. Nc3 {[%clk 0:00:12.8]} 49... a3 {[%clk 0:00:31.6]} 50. Nxd5 {[%clk 0:00:13]}
50... a2 {[%clk 0:00:33.1]} 51. Nxe7+ {[%clk 0:00:14.5]} 51... Kf8 {[%clk
0:00:34.7]} 0-1

[Event "*** Titled Tuesday Blitz"]
[Site "Chess.com"]
[Date "2020.02.04"]
[Round "8"]
[White "GMMatamoros"]
[Black "messiboca"]
[Result "1-0"]
[WhiteElo "2443"]
[BlackElo "2529"]
[TimeControl "180+2"]
[EndTime "10:57:43 PST"]
[Termination "GMMatamoros won by resignation"]

1. Nf3 {[%clk 0:03:01.9]} 1... d5 {[%clk 0:02:55.3]} 2. g3 {[%clk 0:03:01.6]}
2... Nf6 {[%clk 0:02:51.6]} 3. Bg2 {[%clk 0:03:01.7]} 3... c6 {[%clk 0:02:52.8]}
4. c4 {[%clk 0:02:57.5]} 4... Bf5 {[%clk 0:02:41.1]} 5. Qb3 {[%clk 0:02:54.5]}
5... Qb6 {[%clk 0:02:35.7]} 6. d4 {[%clk 0:02:42.2]} 6... e6 {[%clk 0:02:33.5]}
7. Nc3 {[%clk 0:02:42.9]} 7... h6 {[%clk 0:02:29]} 8. c5 {[%clk 0:02:42.9]} 8...
Qc7 {[%clk 0:02:26.9]} 9. Bf4 {[%clk 0:02:42.1]} 9... Qc8 {[%clk 0:02:27.9]} 10.
O-O {[%clk 0:02:32.4]} 10... Be7 {[%clk 0:02:28.9]} 11. Nd2 {[%clk 0:02:23.7]}
11... Nbd7 {[%clk 0:02:26.4]} 12. e4 {[%clk 0:02:22.7]} 12... dxe4 {[%clk
0:02:27.3]} 13. Ndxe4 {[%clk 0:02:24.3]} 13... Nxe4 {[%clk 0:02:20.4]} 14. Nxe4
{[%clk 0:02:26.2]} 14... Bxe4 {[%clk 0:02:19.6]} 15. Bxe4 {[%clk 0:02:28.1]}
15... O-O {[%clk 0:02:19.2]} 16. Rad1 {[%clk 0:02:26.6]} 16... Rd8 {[%clk
0:02:17.1]} 17. h4 {[%clk 0:02:22.8]} 17... Nf6 {[%clk 0:02:16]} 18. Bb1 {[%clk
0:02:19.3]} 18... Rd5 {[%clk 0:02:14.6]} 19. a3 {[%clk 0:02:08.4]} 19... Qd7
{[%clk 0:02:15.2]} 20. Be5 {[%clk 0:01:56.3]} 20... Rd8 {[%clk 0:02:15.1]} 21.
Bc2 {[%clk 0:01:53.6]} 21... Kf8 {[%clk 0:01:59.6]} 22. Qf3 {[%clk 0:01:46.8]}
22... b6 {[%clk 0:01:17.8]} 23. b4 {[%clk 0:01:34.2]} 23... Qb7 {[%clk
0:01:16.4]} 24. Bb3 {[%clk 0:00:58.6]} 24... R5d7 {[%clk 0:01:16.5]} 25. Rfe1
{[%clk 0:00:56.3]} 25... a5 {[%clk 0:01:11.9]} 26. Ba4 {[%clk 0:00:47.2]} 26...
Rd5 {[%clk 0:01:09.9]} 27. Bb3 {[%clk 0:00:46.6]} 27... R5d7 {[%clk 0:01:08.4]}
28. g4 {[%clk 0:00:31.4]} 28... axb4 {[%clk 0:01:05.3]} 29. g5 {[%clk 0:00:28]}
29... hxg5 {[%clk 0:01:02.9]} 30. hxg5 {[%clk 0:00:29.9]} 30... Nd5 {[%clk
0:01:04.1]} 31. Qh5 {[%clk 0:00:26.3]} 31... Ke8 {[%clk 0:00:42.7]} 32. Bxg7
{[%clk 0:00:18.5]} 32... Rc7 {[%clk 0:00:22.6]} 33. Rxe6 {[%clk 0:00:13.8]}
33... Kd7 {[%clk 0:00:23.7]} 34. Qxf7 {[%clk 0:00:14.1]} 34... Kc8 {[%clk
0:00:24.8]} 35. Bxd5 {[%clk 0:00:09.9]} 35... Rxd5 {[%clk 0:00:22.9]} 36. Be5
{[%clk 0:00:10.7]} 36... Rcd7 {[%clk 0:00:19.2]} 37. Qe8+ {[%clk 0:00:11.1]}
37... Bd8 {[%clk 0:00:20.3]} 38. axb4 {[%clk 0:00:08.9]} 38... bxc5 {[%clk
0:00:21.1]} 39. bxc5 {[%clk 0:00:09.8]} 39... Qb3 {[%clk 0:00:15.5]} 40. Rf1
{[%clk 0:00:05.8]} 40... Kb7 {[%clk 0:00:15.9]} 41. Qg6 {[%clk 0:00:03]} 41...
Bc7 {[%clk 0:00:16.6]} 42. Rb1 {[%clk 0:00:04.3]} 42... Qxb1+ {[%clk 0:00:14]}
43. Qxb1+ {[%clk 0:00:06.2]} 43... Kc8 {[%clk 0:00:15.6]} 44. Re8+ {[%clk
0:00:05.7]} 44... Rd8 {[%clk 0:00:17]} 45. Rxd8+ {[%clk 0:00:07.6]} 45... Kxd8
{[%clk 0:00:16.7]} 46. Qf5 {[%clk 0:00:09.5]} 46... Bxe5 {[%clk 0:00:16.2]} 47.
dxe5 {[%clk 0:00:11.4]} 1-0

[Event "*** Titled Tuesday Blitz"]
[Site "Chess.com"]
[Date "2020.02.04"]
[Round "8"]
[White "Evgeny81"]
[Black "TrimitziosP7"]
[Result "1-0"]
[WhiteElo "2733"]
[BlackElo "2785"]
[TimeControl "180+2"]
[EndTime "10:57:47 PST"]
[Termination "Evgeny81 won by resignation"]

1. d4 {[%clk 0:03:00.6]} 1... d5 {[%clk 0:02:58.7]} 2. c4 {[%clk 0:03:01.5]}
2... e6 {[%clk 0:02:57.8]} 3. Nf3 {[%clk 0:03:02.6]} 3... Nf6 {[%clk 0:02:50.6]}
4. Nc3 {[%clk 0:03:02.9]} 4... Be7 {[%clk 0:02:45]} 5. Bg5 {[%clk 0:03:03]} 5...
O-O {[%clk 0:02:44.1]} 6. e3 {[%clk 0:03:04.2]} 6... Nbd7 {[%clk 0:02:44.4]} 7.
cxd5 {[%clk 0:02:59.8]} 7... exd5 {[%clk 0:02:44.7]} 8. Bd3 {[%clk 0:02:59.6]}
8... c6 {[%clk 0:02:45.6]} 9. Qc2 {[%clk 0:02:59.6]} 9... Re8 {[%clk 0:02:43.8]}
10. O-O {[%clk 0:02:59.4]} 10... h6 {[%clk 0:02:44.4]} 11. Bh4 {[%clk
0:02:59.7]} 11... Nf8 {[%clk 0:02:28.1]} 12. Rab1 {[%clk 0:02:50.5]} 12... Ne4
{[%clk 0:02:11.5]} 13. Bxe7 {[%clk 0:02:36.8]} 13... Qxe7 {[%clk 0:02:07.3]} 14.
b4 {[%clk 0:02:38]} 14... a6 {[%clk 0:02:03.9]} 15. a4 {[%clk 0:02:36.1]} 15...
Bf5 {[%clk 0:01:54.7]} 16. Ne5 {[%clk 0:02:14.1]} 16... f6 {[%clk 0:01:42.2]}
17. Bxe4 {[%clk 0:02:03.7]} 17... dxe4 {[%clk 0:01:37.6]} 18. Nc4 {[%clk
0:02:03]} 18... Rad8 {[%clk 0:01:36.7]} 19. b5 {[%clk 0:01:56.7]} 19... axb5
{[%clk 0:01:35.9]} 20. axb5 {[%clk 0:01:57.1]} 20... c5 {[%clk 0:01:35.9]} 21.
d5 {[%clk 0:01:54.8]} 21... Ng6 {[%clk 0:01:33.9]} 22. Rfd1 {[%clk 0:01:40.3]}
22... Nh4 {[%clk 0:01:32.3]} 23. Ne2 {[%clk 0:01:37.4]} 23... Qf7 {[%clk
0:01:23.5]} 24. Ng3 {[%clk 0:01:35.8]} 24... Qg6 {[%clk 0:00:48.8]} 25. d6
{[%clk 0:01:23.2]} 25... Bg4 {[%clk 0:00:43.2]} 26. Rd5 {[%clk 0:01:22.1]} 26...
h5 {[%clk 0:00:39.5]} 27. Rxc5 {[%clk 0:01:18.7]} 27... Nxg2 {[%clk 0:00:37.7]}
28. Kxg2 {[%clk 0:01:12.5]} 28... h4 {[%clk 0:00:38.8]} 29. h3 {[%clk
0:01:04.1]} 29... Bf3+ {[%clk 0:00:37.3]} 30. Kh2 {[%clk 0:01:05.1]} 30... hxg3+
{[%clk 0:00:36.7]} 31. fxg3 {[%clk 0:01:06.7]} 31... Rd7 {[%clk 0:00:14.5]} 32.
Rc7 {[%clk 0:01:01.6]} 32... Red8 {[%clk 0:00:15.2]} 33. b6 {[%clk 0:00:34.5]}
33... Qg5 {[%clk 0:00:10.4]} 34. Qb3 {[%clk 0:00:29.5]} 34... Kh7 {[%clk
0:00:07.8]} 35. Qb5 {[%clk 0:00:30.2]} 35... Qg6 {[%clk 0:00:05.1]} 36. Rxd7
{[%clk 0:00:28.9]} 36... Ra8 {[%clk 0:00:04.7]} 37. Qb3 {[%clk 0:00:18.1]} 37...
Qf5 {[%clk 0:00:04.2]} 38. Rxb7 {[%clk 0:00:17.1]} 38... Qd5 {[%clk 0:00:05]}
39. Ra7 {[%clk 0:00:16.3]} 39... Rc8 {[%clk 0:00:04.4]} 40. Ra5 {[%clk
0:00:14.3]} 40... Qe6 {[%clk 0:00:03.3]} 41. b7 {[%clk 0:00:14.7]} 41... Rxc4
{[%clk 0:00:03]} 42. b8=Q {[%clk 0:00:15.7]} 42... Be2 {[%clk 0:00:02.7]} 43.
Rh5+ {[%clk 0:00:14.7]} 43... Kg6 {[%clk 0:00:03.4]} 44. Qh8 {[%clk 0:00:16.3]}
44... Bd3 {[%clk 0:00:03.4]} 45. Qh7+ {[%clk 0:00:16.6]} 45... Kf7 {[%clk
0:00:04.8]} 46. Qb7+ {[%clk 0:00:17.3]} 46... Ke8 {[%clk 0:00:02.4]} 47. Qh8+
{[%clk 0:00:17.8]} 1-0

[Event "*** Titled Tuesday Blitz"]
[Site "Chess.com"]
[Date "2020.02.04"]
[Round "8"]
[White "doons21"]
[Black "2nd_life"]
[Result "0-1"]
[WhiteElo "2641"]
[BlackElo "2470"]
[TimeControl "180+2"]
[EndTime "10:57:48 PST"]
[Termination "2nd_life won on time"]

1. e4 {[%clk 0:03:01.9]} 1... d5 {[%clk 0:02:58.8]} 2. exd5 {[%clk 0:03:02.5]}
2... Qxd5 {[%clk 0:03:00.7]} 3. Nc3 {[%clk 0:03:04.1]} 3... Qd6 {[%clk
0:03:02.1]} 4. Bc4 {[%clk 0:02:58.7]} 4... Nf6 {[%clk 0:02:59]} 5. d3 {[%clk
0:02:58.6]} 5... a6 {[%clk 0:02:43.6]} 6. Qf3 {[%clk 0:02:49.8]} 6... Nc6 {[%clk
0:02:40.7]} 7. Qg3 {[%clk 0:02:46.4]} 7... Qxg3 {[%clk 0:02:37.5]} 8. hxg3
{[%clk 0:02:47.1]} 8... Nd4 {[%clk 0:02:12.2]} 9. Bb3 {[%clk 0:02:40.9]} 9...
Nxb3 {[%clk 0:02:11.4]} 10. axb3 {[%clk 0:02:41.6]} 10... Bd7 {[%clk 0:02:09.3]}
11. Nf3 {[%clk 0:02:32.2]} 11... e6 {[%clk 0:02:04.8]} 12. Ne5 {[%clk
0:02:30.4]} 12... Bd6 {[%clk 0:02:02.8]} 13. Bf4 {[%clk 0:02:15.9]} 13... Nd5
{[%clk 0:01:48.2]} 14. Nxd5 {[%clk 0:02:16.2]} 14... exd5 {[%clk 0:01:49.2]} 15.
Nxd7 {[%clk 0:02:11.1]} 15... Kxd7 {[%clk 0:01:49.2]} 16. Kd2 {[%clk 0:02:02.8]}
16... Bxf4+ {[%clk 0:01:39.2]} 17. gxf4 {[%clk 0:02:03.4]} 17... Rae8 {[%clk
0:01:40.9]} 18. Rh5 {[%clk 0:02:03.7]} 18... Kd6 {[%clk 0:01:34.7]} 19. Rah1
{[%clk 0:01:54.7]} 19... h6 {[%clk 0:01:34.9]} 20. g4 {[%clk 0:01:55.7]} 20...
Re7 {[%clk 0:01:32.6]} 21. Re1 {[%clk 0:01:16.6]} 21... Rxe1 {[%clk 0:01:27.6]}
22. Kxe1 {[%clk 0:01:18.5]} 22... g6 {[%clk 0:01:28.7]} 23. Rh3 {[%clk 0:01:17]}
23... d4 {[%clk 0:01:25.4]} 24. Kf1 {[%clk 0:01:07.3]} 24... h5 {[%clk 0:01:13]}
25. Kg2 {[%clk 0:00:55.5]} 25... c5 {[%clk 0:01:09.5]} 26. Kg3 {[%clk
0:00:45.7]} 26... Ke6 {[%clk 0:01:07.5]} 27. f5+ {[%clk 0:00:44.6]} 27... Kf6
{[%clk 0:01:08.4]} 28. fxg6 {[%clk 0:00:45.8]} 28... fxg6 {[%clk 0:01:09.3]} 29.
gxh5 {[%clk 0:00:45.9]} 29... Rxh5 {[%clk 0:01:09.1]} 30. Rh4 {[%clk 0:00:15]}
30... Re5 {[%clk 0:00:58.7]} 31. Rh7 {[%clk 0:00:14.6]} 31... Re2 {[%clk
0:00:57.2]} 32. Rxb7 {[%clk 0:00:14.6]} 32... Rxc2 {[%clk 0:00:58.3]} 33. Rb6+
{[%clk 0:00:15.8]} 33... Kf5 {[%clk 0:00:59.2]} 34. Rxa6 {[%clk 0:00:17]} 34...
Rd2 {[%clk 0:00:41.7]} 35. Ra5 {[%clk 0:00:13.3]} 35... Rxd3+ {[%clk 0:00:41.9]}
36. f3 {[%clk 0:00:14.8]} 36... Rxb3 {[%clk 0:00:38.4]} 37. Rxc5+ {[%clk
0:00:15.8]} 37... Ke6 {[%clk 0:00:39.4]} 38. Rg5 {[%clk 0:00:16.8]} 38... Rxb2
{[%clk 0:00:34.6]} 39. Rxg6+ {[%clk 0:00:17.5]} 39... Kd5 {[%clk 0:00:35.1]} 40.
Rg8 {[%clk 0:00:16.6]} 40... d3 {[%clk 0:00:33.7]} 41. Rd8+ {[%clk 0:00:17.7]}
41... Kc4 {[%clk 0:00:35.1]} 42. f4 {[%clk 0:00:17.1]} 42... Rb3 {[%clk
0:00:14.1]} 43. Kf3 {[%clk 0:00:10.8]} 43... Kc3 {[%clk 0:00:13.3]} 44. Ke3
{[%clk 0:00:10.5]} 44... Kc2 {[%clk 0:00:13.7]} 45. f5 {[%clk 0:00:06.8]} 45...
Rb7 {[%clk 0:00:06.6]} 0-1